[Event "55th Rubinstein Memorial-C 2019"]
[Site "Polanica-Zdroj"]
[Date "2019.08.18"]
[Round "2.10"]
[White "Kaminski, Mateusz"]
[Black "Koscielny, Edmond"]
[Result "0-1"]
[ECO "B08"]
[WhiteElo "1544"]
[BlackElo "1841"]
[Annotator "NA"]
[PlyCount "146"]
[EventDate "2019.08.17"]
[EventType "swiss"]
[EventCountry "POL"]
[SourceTitle "playchess.com"]
[Source "ChessBase"]
[SourceQuality "1"]
[TimeControl "40/5400+30:1800+30"]

1. e4 {[%emt 0:00:00]} d6 {[%emt 0:00:00]} 2. d4 {[%emt 0:00:00]} Nf6 {[%emt 0:00:00]} 3. Nc3 {[%emt 0:00:00]} g6 {[%emt 0:00:07]} 4. Nf3 {[%emt 0:01:16]} Bg7 {[%emt 0:00:12]} 5. Bc4 {[%emt 0:00:51]} O-O {[%emt 0:00:12]} 6. O-O {[%emt 0:00:14]} c6 {[%emt 0:00:06]} 7. Bb3 {[%emt 0:01:06]} Bg4 {[%emt 0:03:05]} 8. Be3 {[%emt 0:01:51]} Qc7 {[%emt 0:04:41]} 9. h3 {[%emt 0:05:51]} Bxf3 {[%emt 0:00:55]} 10. Qxf3 {[%emt 0:00:07]} Nbd7 {[%emt 0:00:34]} 11. Qe2 {[%emt 0:05:49]} e5 {[%emt 0:06:16]} 12. dxe5 {[%emt 0:03:21]} dxe5 {[%emt 0:00:21]} 13. Rad1 {[%emt 0:00:56]} b5 {[%emt 0:01:30]} 14. f3 {[%emt 0:03:36]} a5 {[%emt 0:02:03]} 15. a4 {[%emt 0:01:09]} b4 {[%emt 0:01:27]} 16. Nb1 {[%emt 0:00:07]} Rfd8 {[%emt 0:08:26]} 17. Nd2 {[%emt 0:01:29]} Nb6 {[%emt 0:04:23]} 18. Nc4 {[%emt 0:06:19]} Nxc4 {[%emt 0:01:05]} 19. Qxc4 {[%emt 0:00:23]} Nh5 {[%emt 0:04:59]} 20. Rd5 {[%emt 0:06:14]} Nf4 {[%emt 0:05:38]} 21. Rb5 {[%emt 0:04:47]} Ne6 {[%emt 0:07:03]} 22. Rb6 {[%emt 0:02:12]} Rdc8 {[%emt 0:08:54]} 23. Rc1 {[%emt 0:04:49]} Nd4 {[%emt 0:02:54]} 24. Ra6 {[%emt 0:02:21]} Rxa6 {[%emt 0:03:41]} 25. Qxa6 {[%emt 0:00:06]} c5 {[%emt 0:00:31]} 26. Qc4 {[%emt 0:05:39]} Bf8 {[%emt 0:12:14]} 27. Rd1 {[%emt 0:01:31]} Kg7 {[%emt 0:01:58]} 28. Bf2 {[%emt 0:08:07]} Rd8 {[%emt 0:03:08]} 29. Rd3 {[%emt 0:11:44]} Bd6 {[%emt 0:07:22]} 30. g3 {[%emt 0:07:12]} Qe7 {[%emt 0:01:02]} 31. Kg2 {[%emt 0:01:52]} Rf8 {[%emt 0:03:16]} 32. c3 {[%emt 0:03:20]} Nxb3 {[%emt 0:01:48]} 33. Qxb3 {[%emt 0:00:09]} f5 {[%emt 0:02:27]} 34. Qc4 {[%emt 0:01:46]} fxe4 {[%emt 0:00:46]} 35. Qxe4 {[%emt 0:00:20]} bxc3 {[%emt 0:01:05]} 36. bxc3 {[%emt 0:00:51]} Rf6 {[%emt 0:01:14]} 37. Rd2 {[%emt 0:02:38]} Qf8 {[%emt 0:00:35]} 38. Rb2 {[%emt 0:02:03]} Rf7 {[%emt 0:02:07]} 39. Rb5 {[%emt 0:01:17]} Qd8 {[%emt 0:00:15]} 40. Qd5 {[%emt 0:00:57]} Qf6 {[%emt 0:00:59]} 41. Bxc5 {[%emt 0:30:51]} Bxc5 {[%emt 0:30:15]} 42. Rxc5 {[%emt 0:00:08]} Re7 {[%emt 0:00:37]} 43. Rc4 {[%emt 0:03:27]} Qf5 {[%emt 0:00:36]} 44. Re4 {[%emt 0:00:53]} h5 {[%emt 0:00:34]} 45. Qxa5 {[%emt 0:01:21]} h4 {[%emt 0:00:31]} 46. Qc5 {[%emt 0:00:44]} Kf7 {[%emt 0:00:26]} 47. Qd5+ {[%emt 0:01:03]} Kf6 {[%emt 0:00:28]} 48. g4 {[%emt 0:00:32]} Qc8 {[%emt 0:00:39]} 49. c4 {[%emt 0:00:35]} Qa6 {[%emt 0:00:25]} 50. Qb5 {[%emt 0:00:20]} Qd6 {[%emt 0:00:13]} 51. c5 {[%emt 0:00:39]} Qd2+ {[%emt 0:00:10]} 52. Re2 {[%emt 0:00:12]} Qf4 {[%emt 0:00:14]} 53. Qb6+ {[%emt 0:00:49]} Kg5 {[%emt 0:01:07]} 54. Qd8 {[%emt 0:00:30]} Kf6 {[%emt 0:00:49]} 55. Qh8+ {[%emt 0:00:25]} Kg5 {[%emt 0:00:20]} 56. Qd8 {[%emt 0:00:24]} Qg3+ {[%emt 0:00:14]} 57. Kf1 {[%emt 0:00:17]} Qxf3+ {[%emt 0:00:33]} 58. Rf2 {[%emt 0:00:53]} Qxh3+ {[%emt 0:00:22]} 59. Kg1 {[%emt 0:00:24]} Qg3+ {[%emt 0:00:28]} 60. Kf1 {[%emt 0:00:38]} Qh3+ {[%emt 0:00:24]} 61. Ke1 {[%emt 0:00:29]} Qe3+ {[%emt 0:00:59]} 62. Kf1 {[%emt 0:00:17]} Qh3+ {[%emt 0:00:35]} 63. Kg1 {[%emt 0:00:21]} Qg3+ {[%emt 0:00:09]} 64. Rg2 {[%emt 0:00:33]} Qe3+ {[%emt 0:00:31]} 65. Kh2 {[%emt 0:00:09]} Qxc5 {[%emt 0:00:54]} 66. Qd2+ {[%emt 0:00:47]} Kf6 {[%emt 0:00:12]} 67. Rf2+ {[%emt 0:00:37]} Kg7 {[%emt 0:00:14]} 68. Kh3 {[%emt 0:00:46]} e4 {[%emt 0:00:37]} 69. Qb2+ {[%emt 0:00:14]} Kh7 {[%emt 0:00:59]} 70. Kxh4 {[%emt 0:00:46]} Qe3 {[%emt 0:00:27]} 71. Rf8 {[%emt 0:00:33]} g5+ {[%emt 0:00:32]} 72. Kh5 {[%emt 0:00:17]} Qh3+ {[%emt 0:00:20]} 73. Kxg5 {[%emt 0:00:06]} Qh6+ {[%emt 0:00:04] Kh4 Qe3} 0-1

[Event "55th Rubinstein Memorial-C 2019"]
[Site "Polanica-Zdroj"]
[Date "2019.08.18"]
[Round "2.11"]
[White "Sypien, Natan"]
[Black "Kurcaba, Lukasz"]
[Result "1/2-1/2"]
[ECO "D07"]
[WhiteElo "1819"]
[BlackElo "1529"]
[Annotator "NA"]
[PlyCount "113"]
[EventDate "2019.08.17"]
[EventType "swiss"]
[EventCountry "POL"]
[SourceTitle "playchess.com"]
[Source "ChessBase"]
[SourceQuality "1"]
[TimeControl "40/5400+30:1800+30"]

1. d4 {[%emt 0:00:00]} d5 {[%emt 0:03:16]} 2. c4 {[%emt 0:00:00]} Nc6 {[%emt 0:00:16]} 3. Nc3 {[%emt 0:00:00]} e6 {[%emt 0:01:05]} 4. Nf3 {[%emt 0:00:02]} Nf6 {[%emt 0:09:01]} 5. Bg5 {[%emt 0:00:02]} Be7 6. e3 {[%emt 0:00:03]} Ne4 {[%emt 0:04:01]} 7. Bxe7 {[%emt 0:07:39]} Nxe7 {[%emt 0:00:27]} 8. Nxe4 {[%emt 0:16:43]} dxe4 {[%emt 0:00:08]} 9. Ng5 {[%emt 0:00:44]} f5 {[%emt 0:04:51]} 10. Qh5+ {[%emt 0:00:33]} g6 {[%emt 0:00:28]} 11. Qh6 {[%emt 0:00:31]} Ng8 {[%emt 0:10:09]} 12. Qg7 {[%emt 0:00:03]} Qf6 {[%emt 0:00:19]} 13. Qxf6 {[%emt 0:00:05]} Nxf6 {[%emt 0:00:12]} 14. f3 {[%emt 0:01:05]} h6 {[%emt 0:03:11]} 15. Nh3 {[%emt 0:00:12]} b6 {[%emt 0:03:07]} 16. Be2 {[%emt 0:01:52]} Bb7 {[%emt 0:03:51]} 17. b4 {[%emt 0:04:12]} Kf7 {[%emt 0:03:52]} 18. Nf2 {[%emt 0:00:02]} exf3 {[%emt 0:00:24]} 19. Bxf3 {[%emt 0:04:23]} Bxf3 {[%emt 0:00:06]} 20. gxf3 {[%emt 0:02:07]} Rac8 {[%emt 0:02:17]} 21. Nd3 {[%emt 0:00:26]} Nd7 {[%emt 0:01:07]} 22. Rb1 {[%emt 0:05:54]} Rhe8 {[%emt 0:01:29]} 23. c5 {[%emt 0:04:04]} c6 {[%emt 0:01:23]} 24. f4 {[%emt 0:23:31]} g5 {[%emt 0:01:24]} 25. Ke2 {[%emt 0:00:01]} g4 {[%emt 0:00:31]} 26. Rhc1 {[%emt 0:03:18]} b5 {[%emt 0:01:13]} 27. a4 {[%emt 0:01:56]} a6 {[%emt 0:00:58]} 28. axb5 {[%emt 0:00:02]} axb5 {[%emt 0:00:03]} 29. Ra1 {[%emt 0:00:06]} Ra8 {[%emt 0:00:30]} 30. Ra5 {[%emt 0:00:27]} Rxa5 {[%emt 0:03:16]} 31. bxa5 {[%emt 0:00:01]} Ra8 {[%emt 0:04:00]} 32. Ra1 {[%emt 0:00:01]} Ke7 {[%emt 0:01:20]} 33. Nb4 {[%emt 0:02:53]} Nb8 {[%emt 0:00:04]} 34. Kf2 {[%emt 0:01:23]} Kf6 {[%emt 0:01:41]} 35. Kg3 {[%emt 0:00:23]} h5 {[%emt 0:02:16]} 36. Kh4 {[%emt 0:00:01]} Ra7 {[%emt 0:01:17]} 37. Ra2 {[%emt 0:04:01]} Kg6 {[%emt 0:00:47]} 38. Ra1 {[%emt 0:01:52]} Kf6 {[%emt 0:01:28]} 39. Nd3 {[%emt 0:00:50]} Nd7 {[%emt 0:00:44]} 40. a6 {[%emt 0:06:48]} Kg6 {[%emt 0:01:02]} 41. Nf2 {[%emt 0:37:38]} Nb8 {[%emt 0:33:37]} 42. Nd3 {[%emt 0:00:02]} Nd7 {[%emt 0:01:51]} 43. Nb4 {[%emt 0:00:20]} Nb8 {[%emt 0:00:24]} 44. Ra2 {[%emt 0:00:53]} Kf6 {[%emt 0:01:34]} 45. Re2 {[%emt 0:01:33]} Ra8 {[%emt 0:10:21]} 46. Rg2 {[%emt 0:02:18]} Kg6 {[%emt 0:02:07]} 47. Ra2 {[%emt 0:00:23]} Ra7 {[%emt 0:00:12]} 48. Kg3 {[%emt 0:00:02]} Kf6 {[%emt 0:00:42]} 49. Kh4 {[%emt 0:01:05]} Kg6 {[%emt 0:00:07]} 50. h3 {[%emt 0:00:18]} Kf6 {[%emt 0:01:18]} 51. Ra1 {[%emt 0:00:01]} Kg6 {[%emt 0:00:11]} 52. Re1 {[%emt 0:01:51]} Ra8 {[%emt 0:00:56]} 53. e4 Nxa6 54. Ra1 Nc7 55. Rxa8 Nxa8 56. e5 Nc7 57. Nxc6 1/2-1/2

[Event "55th Rubinstein Memorial-C 2019"]
[Site "Polanica-Zdroj"]
[Date "2019.08.18"]
[Round "2.12"]
[White "Rog, Bartlomiej"]
[Black "Matuszczyk, Mateusz"]
[Result "1-0"]
[ECO "B29"]
[WhiteElo "1540"]
[BlackElo "1808"]
[Annotator "NA"]
[PlyCount "111"]
[EventDate "2019.08.17"]
[EventType "swiss"]
[EventCountry "POL"]
[SourceTitle "playchess.com"]
[Source "ChessBase"]
[SourceQuality "1"]
[TimeControl "40/5400+30:1800+30"]

1. e4 {[%emt 0:00:00]} c5 {[%emt 0:00:00]} 2. Nf3 {[%emt 0:00:00]} Nf6 {[%emt 0:00:47]} 3. e5 {[%emt 0:05:35]} Nd5 {[%emt 0:00:08]} 4. c4 {[%emt 0:01:30]} Nb4 {[%emt 0:01:40]} 5. Nc3 {[%emt 0:13:50]} d6 {[%emt 0:08:09]} 6. a3 {[%emt 0:01:34]} N4c6 {[%emt 0:00:13]} 7. exd6 {[%emt 0:00:23]} Qxd6 {[%emt 0:01:19]} 8. Nb5 {[%emt 0:10:24]} Qd8 {[%emt 0:01:44]} 9. d4 {[%emt 0:05:01]} a6 {[%emt 0:02:15]} 10. d5 {[%emt 0:05:48]} axb5 {[%emt 0:00:03]} 11. dxc6 {[%emt 0:00:11]} Qxd1+ {[%emt 0:00:32]} 12. Kxd1 {[%emt 0:00:11]} b4 {[%emt 0:03:21]} 13. c7 {[%emt 0:12:04]} Nc6 {[%emt 0:03:14]} 14. Bd3 {[%emt 0:03:57]} f6 {[%emt 0:04:30]} 15. Be3 {[%emt 0:13:18]} b6 {[%emt 0:09:13]} 16. Ke2 {[%emt 0:01:33]} bxa3 {[%emt 0:01:54]} 17. Rhd1 {[%emt 0:01:07]} Kd7 {[%emt 0:04:05]} 18. b4 {[%emt 0:03:00]} Kxc7 {[%emt 0:04:16]} 19. bxc5 {[%emt 0:00:08]} bxc5 {[%emt 0:00:34]} 20. Bxc5 {[%emt 0:00:02]} e5 {[%emt 0:00:53]} 21. Bxf8 {[%emt 0:00:41]} Rxf8 {[%emt 0:00:02]} 22. Be4 {[%emt 0:00:44]} Be6 {[%emt 0:08:25]} 23. c5 {[%emt 0:02:55]} a2 {[%emt 0:09:21]} 24. Rd6 {[%emt 0:05:56]} Bc4+ {[%emt 0:04:07]} 25. Kd2 {[%emt 0:00:03]} Rfd8 {[%emt 0:04:25]} 26. Kc3 {[%emt 0:00:01]} Bb5 {[%emt 0:00:48]} 27. Rxd8 {[%emt 0:00:03]} Kxd8 {[%emt 0:00:45]} 28. Bd5 {[%emt 0:00:15]} Kc7 {[%emt 0:03:09]} 29. Rxa2 {[%emt 0:00:52]} Rxa2 {[%emt 0:00:12]} 30. Bxa2 {[%emt 0:00:01]} Ne7 {[%emt 0:01:41]} 31. Kb4 {[%emt 0:00:28]} Bc6 {[%emt 0:01:06]} 32. Ne1 {[%emt 0:00:01]} Be4 {[%emt 0:01:15]} 33. Bc4 {[%emt 0:01:51]} Nc6+ {[%emt 0:00:10]} 34. Kc3 {[%emt 0:00:38]} Nd4 {[%emt 0:00:28]} 35. Bd3 {[%emt 0:01:17]} Bxd3 {[%emt 0:01:08]} 36. Nxd3 {[%emt 0:00:01]} Ne6 {[%emt 0:02:16]} 37. Kc4 {[%emt 0:00:11]} e4 {[%emt 0:00:32]} 38. Nb4 {[%emt 0:00:19]} f5 {[%emt 0:00:36]} 39. g3 {[%emt 0:00:50]} g6 {[%emt 0:02:23]} 40. Kd5 {[%emt 0:01:16]} Ng5 {[%emt 0:00:29]} 41. c6 {[%emt 0:31:23]} Kb6 {[%emt 0:34:34]} 42. Kd6 {[%emt 0:00:54]} Nf7+ {[%emt 0:00:43]} 43. Ke6 {[%emt 0:00:59]} Ng5+ {[%emt 0:03:50]} 44. Kd7 {[%emt 0:00:15]} Nf7 {[%emt 0:00:31]} 45. Nd5+ {[%emt 0:00:24]} Kc5 {[%emt 0:01:24]} 46. c7 {[%emt 0:00:02]} Nd6 {[%emt 0:00:08]} 47. Nf4 {[%emt 0:02:13]} g5 {[%emt 0:03:20]} 48. Ne6+ {[%emt 0:00:02]} Kd5 {[%emt 0:00:05]} 49. Nxg5 {[%emt 0:00:02]} h5 {[%emt 0:00:16]} 50. Nf7 {[%emt 0:00:38]} Nc4 {[%emt 0:00:12]} 51. Kc8 {[%emt 0:07:11]} Kc6 {[%emt 0:05:50]} 52. Nd8+ {[%emt 0:00:33]} Kd5 {[%emt 0:00:37]} 53. Kb8 {[%emt 0:00:55]} Nb6 {[%emt 0:00:26]} 54. Kb7 {[%emt 0:00:05]} Nc4 {[%emt 0:00:09]} 55. Nf7 {[%emt 0:00:10]} Na5+ {[%emt 0:00:39]} 56. Ka6 {[%emt 0:00:15]} 1-0

[Event "55th Rubinstein Memorial-C 2019"]
[Site "Polanica-Zdroj"]
[Date "2019.08.18"]
[Round "2.13"]
[White "Karnasiewicz, Robert"]
[Black "Klama, Andrzej"]
[Result "1-0"]
[ECO "A40"]
[WhiteElo "1803"]
[BlackElo "1525"]
[Annotator "NA"]
[PlyCount "125"]
[EventDate "2019.08.17"]
[EventType "swiss"]
[EventCountry "POL"]
[SourceTitle "playchess.com"]
[Source "ChessBase"]
[SourceQuality "1"]
[TimeControl "40/5400+30:1800+30"]

1. d4 {[%emt 0:00:00]} e6 {[%emt 0:00:00]} 2. c4 {[%emt 0:00:00]} b6 {[%emt 0:00:14]} 3. e4 {[%emt 0:00:30]} Bb7 {[%emt 0:00:22]} 4. Bd3 {[%emt 0:00:19]} h6 {[%emt 0:01:43]} 5. Ne2 {[%emt 0:02:17]} Nc6 {[%emt 0:01:50]} 6. a3 {[%emt 0:00:29]} Nge7 {[%emt 0:00:58]} 7. O-O {[%emt 0:00:42]} d6 {[%emt 0:00:37]} 8. f4 {[%emt 0:01:14]} Qd7 {[%emt 0:02:51]} 9. d5 {[%emt 0:00:34]} Nd8 {[%emt 0:02:14]} 10. Nbc3 {[%emt 0:01:23]} a6 {[%emt 0:00:51]} 11. f5 {[%emt 0:01:48]} e5 {[%emt 0:00:56]} 12. b4 {[%emt 0:02:26]} f6 {[%emt 0:00:34]} 13. Rb1 {[%emt 0:00:49]} Nf7 {[%emt 0:01:51]} 14. Be3 {[%emt 0:02:08]} Nc8 {[%emt 0:01:08]} 15. c5 {[%emt 0:01:05]} dxc5 {[%emt 0:04:37]} 16. bxc5 {[%emt 0:00:19]} Bxc5 {[%emt 0:00:53]} 17. Bxc5 {[%emt 0:00:11]} bxc5 {[%emt 0:02:36]} 18. Rxb7 {[%emt 0:01:42]} O-O {[%emt 0:00:23]} 19. Rb1 {[%emt 0:00:50]} Ncd6 {[%emt 0:00:18]} 20. Qa4 {[%emt 0:01:39]} Qxa4 {[%emt 0:03:38]} 21. Nxa4 {[%emt 0:00:03]} c4 {[%emt 0:00:21]} 22. Bc2 {[%emt 0:00:05]} Nb5 {[%emt 0:00:52]} 23. Ra1 {[%emt 0:06:04]} Nfd6 {[%emt 0:01:06]} 24. Nec3 {[%emt 0:02:03]} Rfe8 {[%emt 0:01:38]} 25. Bd1 {[%emt 0:02:44]} Nd4 {[%emt 0:03:59]} 26. g4 {[%emt 0:01:48]} Reb8 {[%emt 0:01:31]} 27. Ra2 {[%emt 0:01:19]} N6b5 {[%emt 0:02:23]} 28. h4 {[%emt 0:01:03]} Kf7 {[%emt 0:00:53]} 29. Rff2 {[%emt 0:08:10]} Nb3 {[%emt 0:03:06]} 30. Bxb3 {[%emt 0:05:07]} cxb3 {[%emt 0:00:17]} 31. Rab2 {[%emt 0:00:11]} Nd4 {[%emt 0:05:30]} 32. Nc5 {[%emt 0:00:39]} a5 {[%emt 0:02:28]} 33. N3a4 {[%emt 0:04:09]} Rb5 {[%emt 0:03:02]} 34. Ne6 {[%emt 0:01:04]} Rc8 {[%emt 0:01:05]} 35. Nac5 {[%emt 0:12:15]} Rb6 {[%emt 0:03:57]} 36. Nxd4 {[%emt 0:02:17]} exd4 {[%emt 0:00:08]} 37. Rxb3 {[%emt 0:00:26]} Ke7 {[%emt 0:02:10]} 38. Rfb2 {[%emt 0:02:23]} Kd6 {[%emt 0:00:51]} 39. Nd3 {[%emt 0:05:46]} Rxb3 {[%emt 0:00:39]} 40. Rxb3 {[%emt 0:00:00]} Re8 {[%emt 0:00:17]} 41. Nf2 {[%emt 0:31:17]} Kc5 {[%emt 0:30:41]} 42. Kg2 {[%emt 0:02:16]} Kc4 {[%emt 0:00:40]} 43. Rb1 {[%emt 0:00:20]} Re7 {[%emt 0:01:38]} 44. Kf3 {[%emt 0:00:16]} Kc3 {[%emt 0:00:35]} 45. Rb5 {[%emt 0:01:43]} Kd2 {[%emt 0:03:31]} 46. Rxa5 {[%emt 0:00:38]} Re8 {[%emt 0:01:49]} 47. Ra4 {[%emt 0:01:11]} Kc3 {[%emt 0:00:17]} 48. Ra7 {[%emt 0:00:46]} Rc8 {[%emt 0:00:14]} 49. e5 {[%emt 0:02:12]} fxe5 {[%emt 0:01:45]} 50. Ke4 {[%emt 0:00:53]} Kc2 {[%emt 0:06:02]} 51. Nd3 {[%emt 0:00:15]} c5 {[%emt 0:00:42]} 52. dxc6 {[%emt 0:01:43]} Rxc6 {[%emt 0:01:22]} 53. Nxe5 {[%emt 0:01:58]} Rd6 {[%emt 0:00:52]} 54. Rc7+ {[%emt 0:00:17]} Kb3 {[%emt 0:01:20]} 55. Rd7 {[%emt 0:00:56]} Ra6 {[%emt 0:01:07]} 56. Rxg7 {[%emt 0:00:26]} Kxa3 {[%emt 0:00:17]} 57. Kxd4 {[%emt 0:00:23]} Kb3 {[%emt 0:00:36]} 58. Rb7+ {[%emt 0:00:25]} Kc2 {[%emt 0:00:15]} 59. g5 {[%emt 0:00:10]} hxg5 {[%emt 0:00:56]} 60. hxg5 {[%emt 0:00:02]} Rd6+ {[%emt 0:00:42]} 61. Ke4 {[%emt 0:00:30]} Rd1 {[%emt 0:00:41]} 62. Rc7+ {[%emt 0:00:11]} Kb3 {[%emt 0:00:12]} 63. f6 {[%emt 0:00:07]} 1-0

[Event "55th Rubinstein Memorial-C 2019"]
[Site "Polanica-Zdroj"]
[Date "2019.08.18"]
[Round "2.14"]
[White "Hasterok, Lukasz"]
[Black "Kroliczek, Gabriela"]
[Result "1/2-1/2"]
[ECO "A40"]
[WhiteElo "1531"]
[BlackElo "1787"]
[Annotator "NA"]
[PlyCount "70"]
[EventDate "2019.08.17"]
[EventType "swiss"]
[EventCountry "POL"]
[SourceTitle "playchess.com"]
[Source "ChessBase"]
[SourceQuality "1"]
[TimeControl "40/5400+30:1800+30"]

1. d4 {[%emt 0:04:27]} g6 {[%emt 0:00:00]} 2. Nf3 {[%emt 0:00:32]} Bg7 {[%emt 0:00:00]} 3. Bf4 {[%emt 0:00:30]} c5 {[%emt 0:00:29]} 4. c3 {[%emt 0:00:44]} Qb6 {[%emt 0:03:27]} 5. Qb3 {[%emt 0:02:49]} d6 {[%emt 0:02:24]} 6. e3 {[%emt 0:01:27]} Nc6 {[%emt 0:02:02]} 7. Bc4 {[%emt 0:26:49]} Qxb3 {[%emt 0:05:49]} 8. axb3 {[%emt 0:00:36]} e5 {[%emt 0:03:44]} 9. dxe5 {[%emt 0:01:48]} dxe5 {[%emt 0:00:17]} 10. Bg3 {[%emt 0:00:23]} Nge7 {[%emt 0:02:16]} 11. h3 {[%emt 0:07:12]} O-O {[%emt 0:01:40]} 12. O-O {[%emt 0:00:57]} Bd7 {[%emt 0:00:54]} 13. Rd1 {[%emt 0:04:21]} Rad8 {[%emt 0:01:34]} 14. Nbd2 {[%emt 0:01:20]} h6 {[%emt 0:05:09]} 15. Ne4 {[%emt 0:03:01]} b6 {[%emt 0:00:03]} 16. Nd6 {[%emt 0:17:00]} Be8 {[%emt 0:05:56]} 17. Bh4 {[%emt 0:04:34]} g5 {[%emt 0:08:17]} 18. Bg3 {[%emt 0:04:21]} Kh8 {[%emt 0:03:52]} 19. Bb5 {[%emt 0:03:57]} f5 {[%emt 0:03:47]} 20. Bxe5 {[%emt 0:01:53]} Bxe5 {[%emt 0:04:25]} 21. Nxe5 {[%emt 0:01:36]} Nxe5 {[%emt 0:00:13]} 22. Bxe8 {[%emt 0:01:46]} N7c6 {[%emt 0:10:12]} 23. Bxc6 Nxc6 24. Nb5 {[%emt 0:01:32]} a5 {[%emt 0:03:37]} 25. Kf1 {[%emt 0:01:23]} Ne5 {[%emt 0:02:19]} 26. Ke2 {[%emt 0:01:15]} Ng6 {[%emt 0:00:32]} 27. Rd6 {[%emt 0:00:44]} Rxd6 {[%emt 0:00:23]} 28. Nxd6 {[%emt 0:00:03]} f4 {[%emt 0:00:36]} 29. e4 {[%emt 0:00:36]} f3+ {[%emt 0:00:41]} 30. gxf3 {[%emt 0:00:26]} Nf4+ {[%emt 0:01:12]} 31. Ke3 {[%emt 0:00:45]} Ng2+ {[%emt 0:00:15]} 32. Ke2 {[%emt 0:01:02]} Nf4+ {[%emt 0:01:02]} 33. Ke3 {[%emt 0:02:43]} Ng2+ {[%emt 0:00:05]} 34. Ke2 {[%emt 0:00:13]} Nf4+ 35. Kf1 Nd3 1/2-1/2

[Event "55th Rubinstein Memorial-C 2019"]
[Site "Polanica-Zdroj"]
[Date "2019.08.18"]
[Round "2.15"]
[White "Burdzicki, Stanislaw"]
[Black "Szlosarczyk, Hubert"]
[Result "1-0"]
[ECO "D30"]
[WhiteElo "1785"]
[BlackElo "1519"]
[Annotator "NA"]
[PlyCount "107"]
[EventDate "2019.08.17"]
[EventType "swiss"]
[EventCountry "POL"]
[SourceTitle "playchess.com"]
[Source "ChessBase"]
[SourceQuality "1"]
[TimeControl "40/5400+30:1800+30"]

1. d4 {[%emt 0:00:22]} d5 {[%emt 0:00:31]} 2. c4 {[%emt 0:00:08]} e6 {[%emt 0:00:46]} 3. Nf3 {[%emt 0:00:35]} Nf6 {[%emt 0:01:05]} 4. g3 {[%emt 0:00:43]} c6 {[%emt 0:00:56]} 5. Qc2 {[%emt 0:01:07]} dxc4 {[%emt 0:02:04]} 6. Qxc4 {[%emt 0:07:05]} b5 {[%emt 0:02:12]} 7. Qc2 {[%emt 0:03:14]} Nd5 {[%emt 0:01:59]} 8. Bd2 {[%emt 0:02:28]} Nb4 {[%emt 0:03:24]} 9. Bxb4 {[%emt 0:14:52]} Bxb4+ {[%emt 0:00:08]} 10. Nbd2 {[%emt 0:00:05]} Bb7 {[%emt 0:03:37]} 11. Bg2 {[%emt 0:00:57]} O-O {[%emt 0:00:55]} 12. O-O {[%emt 0:00:19]} Nd7 {[%emt 0:01:40]} 13. Ne4 {[%emt 0:02:22]} Qe7 {[%emt 0:02:31]} 14. a3 {[%emt 0:04:16]} Ba5 {[%emt 0:00:41]} 15. Ne5 {[%emt 0:09:32]} Rac8 {[%emt 0:07:05]} 16. Nxd7 {[%emt 0:09:41]} Qxd7 {[%emt 0:00:09]} 17. Nc5 {[%emt 0:00:29]} Qe7 {[%emt 0:00:36]} 18. Nxb7 {[%emt 0:06:04]} Qxb7 {[%emt 0:00:40]} 19. Rfc1 {[%emt 0:00:20]} Qd7 {[%emt 0:01:51]} 20. e3 {[%emt 0:00:25]} Rc7 {[%emt 0:05:23]} 21. Bxc6 {[%emt 0:02:28]} Qd6 {[%emt 0:01:27]} 22. Qc5 {[%emt 0:00:45]} Qxc5 {[%emt 0:01:02]} 23. Rxc5 {[%emt 0:00:05]} Bb6 {[%emt 0:00:15]} 24. Rc3 {[%emt 0:02:16]} Rfc8 {[%emt 0:01:55]} 25. Rac1 {[%emt 0:00:39]} Ba5 {[%emt 0:04:23]} 26. b4 {[%emt 0:08:52]} Bb6 {[%emt 0:00:06]} 27. Kf1 {[%emt 0:00:14]} a6 {[%emt 0:02:03]} 28. Ke2 {[%emt 0:00:06]} Kf8 {[%emt 0:00:23]} 29. Kd3 {[%emt 0:00:14]} Ke7 {[%emt 0:00:22]} 30. Bb7 {[%emt 0:00:41]} Rxc3+ {[%emt 0:02:09]} 31. Rxc3 {[%emt 0:00:06]} Rxc3+ {[%emt 0:00:44]} 32. Kxc3 {[%emt 0:00:05]} Kd7 {[%emt 0:01:06]} 33. Bxa6 {[%emt 0:03:05]} Kc6 {[%emt 0:00:03]} 34. Kb3 {[%emt 0:00:32]} Bd8 {[%emt 0:00:21]} 35. a4 {[%emt 0:00:14]} bxa4+ {[%emt 0:00:13]} 36. Kxa4 {[%emt 0:00:14]} Kb6 {[%emt 0:00:44]} 37. Bd3 {[%emt 0:09:32]} h6 {[%emt 0:00:25]} 38. Bh7 {[%emt 0:00:57]} f6 {[%emt 0:00:12]} 39. Kb3 {[%emt 0:02:31]} Kb5 {[%emt 0:01:19]} 40. Bd3+ {[%emt 0:01:27]} Kc6 {[%emt 0:00:40]} 41. Kc4 {[%emt 0:30:54]} Bc7 {[%emt 0:31:00]} 42. Bg6 {[%emt 0:01:40]} Bd6 {[%emt 0:01:52]} 43. Be8+ {[%emt 0:01:55]} Kb6 {[%emt 0:02:09]} 44. b5 {[%emt 0:00:07]} Kc7 {[%emt 0:00:25]} 45. Bf7 {[%emt 0:01:21]} e5 {[%emt 0:01:02]} 46. Kd5 {[%emt 0:01:00]} exd4 {[%emt 0:01:06]} 47. b6+ {[%emt 0:01:43]} Kd7 {[%emt 0:00:43]} 48. Be6+ {[%emt 0:00:23]} Ke7 {[%emt 0:00:34]} 49. exd4 {[%emt 0:00:05]} Bb8 {[%emt 0:00:45]} 50. Bf5 {[%emt 0:00:30]} Kd8 {[%emt 0:00:29]} 51. Kc6 {[%emt 0:00:39]} g5 {[%emt 0:00:11]} 52. Kb7 {[%emt 0:02:08]} Bd6 {[%emt 0:00:23]} 53. Ka7 {[%emt 0:00:44]} h5 {[%emt 0:00:12]} 54. b7 {[%emt 0:00:11]} 1-0